Cogmind - Beta 10.1 @@@ ROGUE MODE // 2020.10.10 @ 23:19:45 Player: Tmvn Result: Destroyed by B-75 Beast with Magnetic Acceleration Cannon Performance ------------- Evolutions (5) 2500 Regions Visited (11) 2200 Robots Destroyed (85) 425 Value Destroyed (2739) 2739 Prototype IDs (28) 560 Alien Tech Used (0) 0 Bonus (348) 348 TOTAL SCORE: 8772 Bonus ------- Follower Combat Kills 48 Aligned with FarCom 300 Cogmind --------- Core Integrity 0/1000 Matter 300/300 Energy 100/100 System Corruption 3% Temperature Cool (12) Movement Core (350) Ox6 Location -5/Extension Parts ------- > --- POWER (2) -------- (None) > --- PROPULSION (4) --- (None) > --- UTILITY (9) ------ Large Storage Unit Hacking Suite Improved System Shield > --- WEAPON (2) ------- Heavy Pick > --- INVENTORY (10) --- Improved Carbon-fiber Leg Improved Carbon-fiber Leg Improved Carbon-fiber Leg Improved Signal Interpreter Field Recycling Unit (90) Missile Launcher Peak State ------------ > --- POWER ------------ Angular Momentum Engine Light Angular Momentum Engine > --- PROPULSION ------- Gravmag System Cooled Airjet Gravmag Array > --- UTILITY ---------- Medium Storage Unit Large Storage Unit Advanced Weight Redist. System Improved Transmission Jammer Advanced ECM Suite Cloaking Device EM Shield Improved Hacking Suite Improved System Shield > --- WEAPON ----------- Improved Grenade Launcher Heavy Pick > --- INVENTORY -------- Micro Nuclear Core Light Fission Core Gravmag System Cooled Airjet Gravmag Array Gravmag Array Hacking Suite Field Recycling Unit Heavy Plasma Cannon Missile Launcher [Rating: 77] Favorites ----------- Power Improved Deuterium Engine Engine Improved Deuterium Engine Power Core Light Fission Core Propulsion Medium Treads Treads Medium Treads Leg Aluminum Leg Hover Unit Gravmag Array Flight Unit Cooled Cesium-ion Thruster Utility High-capacity Storage Unit Device Improved Transmission Jammer Storage High-capacity Storage Unit Processor Advanced Signal Interpreter Hackware Improved System Shield Protection Hardened Medium Armor Plating Weapon Light Assault Rifle Energy Gun Shock Rifle Energy Cannon Heavy Ion Cannon Ballistic Gun Light Assault Rifle Launcher Improved Grenade Launcher Impact Weapon Hammer Slashing Weapon Greatsword Piercing Weapon Heavy Pick Build | -11 -10 -10 -10 -9 -8 -7 -7 -7 -6 -5 -5 ------- Run | Scr Mat Min Exi Min Mat Fac Low Low Fac Fac Ext Slots Evolved 10 | . . . . . 4 2 . . 2 2 . Power 1 | . . . . . . . . . 1 . . Propulsion 2 | . . . . . 1 1 . . . . . Utility 7 | . . . . . 3 1 . . 1 2 . Weapon . | . . . . . . . . . . . . Parts Attached 140 | . 11 . 2 3 26 28 3 . 53 8 6 Power 17 | . 2 . . 1 1 3 . . 5 3 2 Engine 15 | . 2 . . 1 1 3 . . 5 1 2 Core 2 | . . . . . . . . . . 2 . Reactor . | . . . . . . . . . . . . Propulsion 38 | . 2 . . . 4 9 . . 18 2 3 Treads 20 | . 2 . . . 4 7 . . 7 . . Leg 1 | . . . . . . . . . . . 1 Wheel . | . . . . . . . . . . . . Hover 12 | . . . . . . 2 . . 6 2 2 Flight 5 | . . . . . . . . . 5 . . Utility 28 | . 3 . 2 . 5 3 1 . 11 2 1 Device 7 | . . . . . . . . . 7 . . Storage 8 | . 3 . 2 . 2 . . . 1 . . Processor 2 | . . . . . . 1 1 . . . . Hackware 3 | . . . . . . . . . . 2 1 Protection 8 | . . . . . 3 2 . . 3 . . Artifact . | . . . . . . . . . . . . Weapon 57 | . 4 . . 2 16 13 2 . 19 1 . Energy Gun 12 | . . . . . 1 4 2 . 5 . . Energy Cannon 2 | . . . . . . 1 . . . 1 . Ballistic Gun 28 | . 3 . . 1 10 6 . . 8 . . Ballistic Cannon . | . . . . . . . . . . . . Launcher 9 | . . . . 1 4 1 . . 3 . . Special Weapon . | . . . . . . . . . . . . Impact Weapon 3 | . 1 . . . 1 1 . . . . . Slashing Weapon 2 | . . . . . . . . . 2 . . Piercing Weapon 1 | . . . . . . . . . 1 . . Special Melee Weapon . | . . . . . . . . . . . . Unidentified Prototypes 5 | . . . . . . 2 . . 3 . . Parts Lost 38 | . 1 . . . 4 4 . . 6 12 11 Power 7 | . . . . . . 1 . . . 3 3 Propulsion 16 | . . . . . 2 2 . . 4 3 5 Utility 11 | . . . . . 2 1 . . 1 4 3 Weapon 4 | . 1 . . . . . . . 1 2 . Highest Loss Streak 11 | . 1 . . . 2 2 . . 2 10 11 Average Slot Usage (%) 93 | . 99 100 100 100 86 97 99 100 91 80 57 Engine 11 | . 14 14 14 14 9 6 7 7 13 8 4 Treads 22 | . 18 28 28 28 25 29 30 30 17 . . Leg 1 | . 9 . . . . . . . . . . Hover 1 | . . . . . . . . . 4 14 10 Device 3 | . . . . . . . . . 10 23 4 Storage 25 | . 27 28 28 28 26 30 30 30 23 11 10 Processor 1 | . . . . . . 3 . 7 3 . . Protection 5 | . . . . . 6 9 14 7 7 . . Energy Gun 2 | . . . . . 1 3 13 15 4 . . Ballistic Gun 13 | . 24 28 28 27 15 8 1 . 3 . . Naked Turns . | . . . . . . . . . . . . Heaviest Build 130 | 12 39 39 71 73 107 124 120 112 130 61 38 Greatest Support 114 | 20 40 40 40 40 84 112 112 112 114 61 56 Greatest Overweight (x) 17 | . 1 . 1 1 1 1 1 . 14 17 6 Average Overweight (x) . | . . . . 1 . . . . . . . Largest Inventory Capacity 30 | . 16 16 20 20 30 30 30 30 30 14 14 Average Capacity 22 | . 12 16 17 20 25 30 30 30 26 14 13 Most Carried 30 | . 12 13 18 20 27 30 30 30 30 14 11 Average Carried 21 | . 9 12 15 18 23 28 29 30 25 12 9 Final Capacity 30 | 6 16 16 20 20 30 30 30 30 14 14 10 Final Carried 30 | 6 11 13 18 20 27 30 30 30 14 11 6 Class Distribution -------------------- 68% | Hauler-Mutant 19% | Mutant 8% | Infiltrator-Mutant 3% | Hacker-Mutant Dominant Class ---------------- Mutant | -10/Materials Mutant | -10/Mines Mutant | -10/Exiles Hauler-Mutant | -9/Mines Hauler-Mutant | -8/Materials Hauler-Mutant | -7/Factory Hauler-Mutant | -7/Lower Caves Hauler-Mutant | -7/Lower Caves Hauler-Mutant | -6/Factory Infiltrator-Mutant | -5/Factory Hacker-Mutant | -5/Extension Resources | -11 -10 -10 -10 -9 -8 -7 -7 -7 -6 -5 -5 ----------- Run | Scr Mat Min Exi Min Mat Fac Low Low Fac Fac Ext Matter Collected 3093 | 195 237 54 . 88 558 549 229 . 963 205 15 Remotely . | . . . . . . . . . . . . Salvage Created 2990 | . 331 88 . 71 1036 547 . . 647 270 . Parts 201 | . 27 3 . 6 67 28 . . 50 20 . Haulers Intercepted 3 | . 1 . . . 2 . . . . . . Recyclers Shooed 5 | . . . . . . 2 . . 3 . . Parts Field Recycled 12 | . . . . . . . . . 12 . . Retrieved Matter 124 | . . . . . . . . . 124 . . Parts Self-Destructed . | . . . . . . . . . . . . Prevented . | . . . . . . . . . . . . Kills | -11 -10 -10 -10 -9 -8 -7 -7 -7 -6 -5 -5 ------- Run | Scr Mat Min Exi Min Mat Fac Low Low Fac Fac Ext Combat Hostiles Destroyed 65 | . 10 2 . 3 21 12 . . 14 3 . Melee 1 | . . . . . . . . . . 1 . Guns 46 | . 10 2 . . 13 11 . . 10 . . AOE 18 | . . . . 3 8 1 . . 4 2 . Classes Destroyed 10 | . 4 . . . 3 2 . . 1 . . Worker 9 | . 1 . . . 4 1 . . 2 1 . Builder 2 | . . . . . 2 . . . . . . Tunneler 2 | . . . . . . . . . 1 1 . Hauler 3 | . 1 . . . 2 . . . . . . Recycler 3 | . . . . . . 1 . . 1 1 . Operator 1 | . . . . . 1 . . . . . . Swarmer 22 | . 6 . . . 4 6 . . 6 . . Grunt 22 | . 4 2 . 3 11 1 . . 1 . . Sentry 10 | . . . . . 6 2 . . 2 . . Programmer 11 | . . . . . . 3 . . 5 3 . Best Kill Streak 8 | . 4 2 . 3 8 4 . . 3 2 . Combat Bots Only 5 | . 3 2 . 3 5 4 . . 3 2 . Max Kills in Single Turn 3 | . 2 1 . 2 3 1 . . 2 1 . Gunslinging 1 | . 1 . . . . . . . . . . Exploded 2 | . . . . 2 2 1 . . 1 1 . Melee 1 | . . . . . . . . . . 1 . Uniques/NPCs Destroyed . | . . . . . . . . . . . . Combat | -11 -10 -10 -10 -9 -8 -7 -7 -7 -6 -5 -5 -------- Run | Scr Mat Min Exi Min Mat Fac Low Low Fac Fac Ext Damage Taken 8603 | . 448 183 . 67 1384 1913 . . 1772 1586 1250 Core 1781 | . 45 37 . 11 155 218 . . 313 449 553 Absorbed by Shields . | . . . . . . . . . . . . Core Remaining (%) 72 | 100 . . . 62 71 . . 68 63 . . Volleys Fired 254 | . 42 12 . 4 65 66 . . 56 9 . Largest 2 | . 2 2 . 2 2 2 . . 2 1 . Hottest 134 | . 40 40 . 53 81 134 . . 103 90 . Shots Fired 493 | . 83 24 . 8 130 133 1 . 105 9 . Gun 444 | . 83 24 . 4 118 122 1 . 92 . . Cannon 10 | . . . . . . 7 . . . 3 . Launcher 39 | . . . . 4 12 4 . . 13 6 . Special . | . . . . . . . . . . . . Kinetic 383 | . 83 24 . 4 111 100 . . 61 . . Thermal 49 | . . . . . 7 29 1 . 9 3 . Explosive 39 | . . . . 4 12 4 . . 13 6 . Electromagnetic 22 | . . . . . . . . . 22 . . Robot Hit Streak 13 | . 9 8 . 11 13 11 . . 13 10 . Robot Miss Streak 5 | . 3 1 . 1 3 5 . . 5 1 . Penetration Max . | . . . . . . . . . . . . Secondary Targets 9 | . 4 1 . . . 3 . . 1 . . Max Gunslinging Chain 1 | . 1 1 . . . 1 . . 1 . . Shots Hit Robots 350 | . 49 20 . 7 88 98 . . 75 13 . Core Hits 196 | . 22 6 . 6 65 38 . . 49 10 . Critical Hits 5 | . 1 1 . . 1 . . . . 2 . Critical Kills 3 | . . . . . 1 . . . . 2 . Critical Parts Destroyed 2 | . 1 1 . . . . . . . . . Melee Attacks 30 | . 13 . . . 1 1 . . 6 8 1 Impact 15 | . 13 . . . 1 1 . . . . . Slashing 6 | . . . . . . . . . 6 . . Piercing 9 | . . . . . . . . . . 8 1 Sneak Attacks 3 | . . . . . . . . . . 3 . Combat Hostiles . | . . . . . . . . . . . . Follow-up Attacks . | . . . . . . . . . . . . Damage Inflicted 7481 | . 523 140 . 259 2093 1661 . . 1954 851 . Guns 4247 | . 523 140 . 29 1114 1351 . . 1090 . . Cannons 230 | . . . . . . 135 . . . 95 . Explosions 2573 | . . . . 230 967 175 . . 864 337 . Melee 419 | . . . . . . . . . . 419 . Ramming 12 | . . . . . 12 . . . . . . Kinetic 3574 | . 523 140 . 29 1042 1037 . . 803 . . Thermal 729 | . . . . . 72 449 . . 113 95 . Explosive 2573 | . . . . 230 967 175 . . 864 337 . Electromagnetic 174 | . . . . . . . . . 174 . . Impact . | . . . . . . . . . . . . Slashing . | . . . . . . . . . . . . Piercing 419 | . . . . . . . . . . 419 . Highest Corruption 12 | . . . . . . 7 7 7 12 3 3 Average Corruption 6 | . . . . . . 5 7 7 8 1 3 Corruption Purged . | . . . . . . . . . . . . Effects 86 | . . . . . . 14 21 1 47 . 3 Message Errors 18 | . . . . . . 2 5 1 9 . 1 Matter Fused 21 | . . . . . . 6 4 . 10 . 1 Heat Flow Errors 6 | . . . . . . 1 2 . 3 . . Energy Discharges 16 | . . . . . . . 9 . 6 . 1 Parts Rejected 1 | . . . . . . . . . 1 . . Data Loss (minor) 6 | . . . . . . 1 . . 5 . . Data Loss (major) 2 | . . . . . . 1 . . 1 . . Misfires 2 | . . . . . . 1 1 . . . . Misdirections 8 | . . . . . . . . . 8 . . Targeting Errors 6 | . . . . . . 2 . . 4 . . Overload Shots . | . . . . . . . . . . . . Overflow Damage 94 | . . . . . . 27 . . 19 48 . Projectiles 24 | . . . . . . 24 . . . . . Explosions 70 | . . . . . . 3 . . 19 48 . Melee . | . . . . . . . . . . . . Knockbacks 1 | . . . . . 1 . . . . . . Impact 1 | . . . . . 1 . . . . . . Kinetic . | . . . . . . . . . . . . Secondary . | . . . . . . . . . . . . Self-Inflicted Damage 427 | . . . . 27 3 33 . . 108 256 . Shots 15 | . . . . 2 1 2 . . 4 6 . Rammed 1 | . . . . . 1 . . . . . . Targets Rammed 1 | . . . . . 1 . . . . . . Kicked . | . . . . . . . . . . . . Crushed . | . . . . . . . . . . . . Highest Temperature 443 | . 18 31 . 24 100 443 139 . 365 61 . Average Temperature 76 | . 9 14 . 12 28 101 57 . 94 26 . Received Heat Transfer 1770 | . 150 105 . 24 585 363 . . 174 180 189 Effects 2 | . . . . . . 2 . . . . . Shutdowns 1 | . . . . . . 1 . . . . . Short Circuit 1 | . . . . . . 1 . . . . . Siege Activations . | . . . . . . . . . . . . Robots Corrupted . | . . . . . . . . . . . . Combat Hostiles . | . . . . . . . . . . . . Parts Fried . | . . . . . . . . . . . . Impact Corruptions . | . . . . . . . . . . . . Robots Melted . | . . . . . . . . . . . . Combat Hostiles . | . . . . . . . . . . . . Parts Melted 5 | . . . . . . 4 . . . 1 . Heat Transferred 1399 | . . . . . 185 814 . . 250 150 . Parts Sabotaged . | . . . . . . . . . . . . Parts Stolen . | . . . . . . . . . . . . Parts Stripped . | . . . . . . . . . . . . Power Chain Reactions . | . . . . . . . . . . . . Missiles Intercepted . | . . . . . . . . . . . . Alert | -11 -10 -10 -10 -9 -8 -7 -7 -7 -6 -5 -5 ------- Run | Scr Mat Min Exi Min Mat Fac Low Low Fac Fac Ext Peak Influence 366 | . 161 50 . 100 366 201 . . 283 203 124 Initial 115 | . . . . . . 115 . . . 107 64 Average 92 | . 52 33 . 37 133 88 . . 114 129 78 Maximum Alert Level 1 | . . . . . 1 1 . . 1 1 . Low Security (%) 87 | . 100 100 . 100 65 98 . . 78 99 100 Level 1 12 | . . . . . 34 1 . . 21 . . Level 2 . | . . . . . . . . . . . . Level 3 . | . . . . . . . . . . . . Level 4 . | . . . . . . . . . . . . Level 5 . | . . . . . . . . . . . . High Security . | . . . . . . . . . . . . Max Security . | . . . . . . . . . . . . Squads Dispatched 20 | . 1 . . . 4 6 . . 5 4 . Investigation 3 | . 1 . . . 1 1 . . . . . Extermination 8 | . . . . . . 3 . . 4 1 . Reinforcement 3 | . . . . . . 2 . . 1 . . Assault . | . . . . . . . . . . . . Garrison 6 | . . . . . 3 . . . . 3 . Intercept . | . . . . . . . . . . . . Construction Impeded 1 | . . . . . . 1 . . . . . Haulers Reinforced . | . . . . . . . . . . . . Stealth | -11 -10 -10 -10 -9 -8 -7 -7 -7 -6 -5 -5 --------- Run | Scr Mat Min Exi Min Mat Fac Low Low Fac Fac Ext Distress Signals 10 | . . . . . 7 . . . 1 . 2 Communications Jammed . | . . . . . . . . . . . . Distress Signals . | . . . . . . . . . . . . Times Spotted 120 | . 17 2 . 3 38 21 . . 20 8 11 Peak Tracking Total 7 | . 4 2 . 3 7 7 . . 3 4 6 Tactical Retreats 13 | . . . . . 5 3 . . 2 . 3 Traps | -11 -10 -10 -10 -9 -8 -7 -7 -7 -6 -5 -5 ------- Run | Scr Mat Min Exi Min Mat Fac Low Low Fac Fac Ext Traps Triggered 6 | . . . . . 1 1 . . . 4 . Indirectly . | . . . . . . . . . . . . Trap Hack Attempts . | . . . . . . . . . . . . Triggered . | . . . . . . . . . . . . Disarmed . | . . . . . . . . . . . . Reprogrammed . | . . . . . . . . . . . . Reused . | . . . . . . . . . . . . Traps Extracted . | . . . . . . . . . . . . Installed . | . . . . . . . . . . . . Triggered . | . . . . . . . . . . . . Machines | -11 -10 -10 -10 -9 -8 -7 -7 -7 -6 -5 -5 ---------- Run | Scr Mat Min Exi Min Mat Fac Low Low Fac Fac Ext Machines Disabled 9 | . . . . 1 . . . . 6 . 2 Max in Single Turn 4 | . . . . 1 . . . . 4 . 1 Machines Sabotaged . | . . . . . . . . . . . . Garrisons Compromised . | . . . . . . . . . . . . Overloaded Fab Kills . | . . . . . . . . . . . . Fab Network Shutdowns . | . . . . . . . . . . . . Hacking | -11 -10 -10 -10 -9 -8 -7 -7 -7 -6 -5 -5 --------- Run | Scr Mat Min Exi Min Mat Fac Low Low Fac Fac Ext Machines Accessed 26 | . 8 . 1 . 2 1 . . 7 1 6 Terminals 21 | . 8 . . . 2 1 . . 3 1 6 Fabricators 2 | . . . . . . . . . 2 . . Repair Stations 1 | . . . . . . . . . 1 . . Recycling Units . | . . . . . . . . . . . . Scanalyzers 1 | . . . . . . . . . 1 . . Garrison Access . | . . . . . . . . . . . . Total Hacks 68 | . 25 . 1 . 7 1 . . 14 3 17 Successful 43 | . 21 . 1 . 1 . . . 6 2 12 Failed 25 | . 4 . . . 6 1 . . 8 1 5 Catastrophic 4 | . . . . . 1 1 . . 2 . . Database Lockouts . | . . . . . . . . . . . . Manual 38 | . 14 . 1 . 7 . . . 8 4 4 Terminals 60 | . 25 . . . 7 1 . . 7 3 17 Fabricators 3 | . . . . . . . . . 3 . . Repair Stations 2 | . . . . . . . . . 2 . . Recycling Units . | . . . . . . . . . . . . Scanalyzers 2 | . . . . . . . . . 2 . . Garrison Access . | . . . . . . . . . . . . Terminal Hacks 30 | . 14 . 1 . 1 . . . 1 2 11 Robot Analysis 4 | . 4 . . . . . . . . . . Open Door 1 | . . . . . . . . . . . 1 Branch Access Points 1 | . . . . . . . . . . . 1 Garrison Index 1 | . . . . . . . . . . . 1 Alert Level 2 | . 1 . . . . . . . . . 1 Unreport Threat 6 | . 2 . . . 1 . . . 1 . 2 Locate Traps 3 | . 2 . . . . . . . . . 1 Maintenance Status 1 | . 1 . . . . . . . . . . Recall Investigation 1 | . . . . . . . . . . 1 . Recall Assault 1 | . . . . . . . . . . . 1 Registered Components 1 | . . . . . . . . . . . 1 Zone Layout 7 | . 4 . . . . . . . . 1 2 EX-Prototype ID Bank 1 | . . . 1 . . . . . . . . Fabricator Hacks 1 | . . . . . . . . . 1 . . Network Status 1 | . . . . . . . . . 1 . . Repair Station Hacks 2 | . . . . . . . . . 2 . . Scan Component 1 | . . . . . . . . . 1 . . Repair 1 | . . . . . . . . . 1 . . Recycling Unit Hacks . | . . . . . . . . . . . . Scanalyzer 2 | . . . . . . . . . 2 . . Insert Component 1 | . . . . . . . . . 1 . . Analyze 1 | . . . . . . . . . 1 . . Garrison Access Hacks . | . . . . . . . . . . . . Unauthorized Hacks 8 | . 7 . . . . . . . . . 1 Terminals 8 | . 7 . . . . . . . . . 1 Track 2 | . 2 . . . . . . . . . . Botnet 5 | . 5 . . . . . . . . . . Operators 1 | . . . . . . . . . . . 1 Fabricators . | . . . . . . . . . . . . Repair Stations . | . . . . . . . . . . . . Recycling Units . | . . . . . . . . . . . . Scanalyzers . | . . . . . . . . . . . . Garrison Access . | . . . . . . . . . . . . Data Cores Recovered 1 | . . . . . 1 . . . . . . Used . | . . . . . . . . . . . . Hacking Detections 23 | . 7 . . . 2 1 . . 7 2 4 Full Trace Events 2 | . 1 . . . 1 . . . . . . Feedback Events . | . . . . . . . . . . . . Feedback Blocked . | . . . . . . . . . . . . Robot Schematics Acquired . | . . . . . . . . . . . . Robots Built . | . . . . . . . . . . . . Matter . | . . . . . . . . . . . . Time . | . . . . . . . . . . . . Total Robot Build Rating . | . . . . . . . . . . . . Part Schematics Acquired 1 | . . . . . . . . . 1 . . Parts Built . | . . . . . . . . . . . . Matter . | . . . . . . . . . . . . Time . | . . . . . . . . . . . . Total Part Build Rating . | . . . . . . . . . . . . Parts Repaired 1 | . . . . . . . . . 1 . . Time 26 | . . . . . . . . . 26 . . Parts Recycled . | . . . . . . . . . . . . Recycled Matter . | . . . . . . . . . . . . Retrieved Matter . | . . . . . . . . . . . . Retrieved Components . | . . . . . . . . . . . . Parts Scanalyzed 1 | . . . . . . . . . 1 . . Part Schematics Acquired 1 | . . . . . . . . . 1 . . Parts Damaged . | . . . . . . . . . . . . Bothacking | -11 -10 -10 -10 -9 -8 -7 -7 -7 -6 -5 -5 ------------ Run | Scr Mat Min Exi Min Mat Fac Low Low Fac Fac Ext Used RIF Installer . | . . . . . . . . . . . . Robots Hacked . | . . . . . . . . . . . . Non-combat . | . . . . . . . . . . . . Combat . | . . . . . . . . . . . . Robot Hacks Applied . | . . . . . . . . . . . . Relay Couplers Released . | . . . . . . . . . . . . Robots Rewired . | . . . . . . . . . . . . Allies Hacked . | . . . . . . . . . . . . Hacks Repelled . | . . . . . . . . . . . . Allies | -11 -10 -10 -10 -9 -8 -7 -7 -7 -6 -5 -5 -------- Run | Scr Mat Min Exi Min Mat Fac Low Low Fac Fac Ext Total Allies 1 | . . . . . . . . . . . 1 Largest Group 1 | . . . . . . . . . . . 1 Highest-Rated Group 37 | . . . . . . . . . . . 37 Highest-Rated Ally 37 | . . . . . . . . . . . 37 Total Orders . | . . . . . . . . . . . . Ally Attacks 9 | . . . . . . . . . . . 9 Total Damage 101 | . . . . . . . . . . . 101 Kills 1 | . . . . . . . . . . . 1 Allies Corrupted . | . . . . . . . . . . . . Allies Melted . | . . . . . . . . . . . . Intel | -11 -10 -10 -10 -9 -8 -7 -7 -7 -6 -5 -5 ------- Run | Scr Mat Min Exi Min Mat Fac Low Low Fac Fac Ext Robot Analysis Total 4 | . 4 . . . . . . . . . . Derelict Logs Recovered 4 | . . 1 . 1 . . 2 . . . . Drone Launches . | . . . . . . . . . . . . Drone Recoveries . | . . . . . . . . . . . . Exploration | -11 -10 -10 -10 -9 -8 -7 -7 -7 -6 -5 -5 ------------- Run | Scr Mat Min Exi Min Mat Fac Low Low Fac Fac Ext Turns Passed 9184 | . 1143 126 705 1056 1251 1235 692 26 2341 355 254 Spaces Moved 5704 | 1 626 59 425 575 498 588 384 17 1630 512 389 Core 4 | . . . . . . . . . . 2 2 Treads 3822 | . 413 59 425 575 498 588 384 17 863 . . Legs 222 | 1 213 . . . . . . . . . 8 Wheels . | . . . . . . . . . . . . Hover 1652 | . . . . . . . . . 763 510 379 Flight 4 | . . . . . . . . . 4 . . Fastest Speed 45 | 120 120 160 160 180 160 160 160 160 45 48 56 Average Speed 138 | 120 155 160 164 180 176 168 179 160 123 52 60 Slowest Speed 1195 | 120 160 160 180 180 180 183 180 160 1195 900 350 Overloaded Moves . | . . . . . . . . . . . . Propulsion Burnouts . | . . . . . . . . . . . . Robots Hopped . | . . . . . . . . . . . . Cave-ins Triggered 1 | . . . . . . . . . 1 . . Exploration Rate (%) 43 | 2 90 11 88 96 48 15 50 8 39 15 54 Regions Visited 11 Branch Regions 6 Pre-discovered Areas 1 | . . . . 1 . . . . . . . Known Exits Taken 3 | . . . . . 1 . 1 1 . . . Unknown Exits Taken 8 | 1 1 1 1 1 . 1 . . 1 1 . Scrap Searched 3 | . . 1 . 1 . . 1 . . . . Spaces Dug 18 | . 8 . . . 1 1 . . 6 2 . Terrain Destroyed 293 | . 8 . . 41 80 8 . . 139 17 . Melee 18 | . 8 . . . 1 1 . . 6 2 . Projectile 1 | . . . . . . 1 . . . . . AOE 274 | . . . . 41 79 6 . . 133 15 . Terrain Rammed . | . . . . . . . . . . . . Walls Destroyed . | . . . . . . . . . . . . Machines Disabled . | . . . . . . . . . . . . Actions | -11 -10 -10 -10 -9 -8 -7 -7 -7 -6 -5 -5 --------- Run | Scr Mat Min Exi Min Mat Fac Low Low Fac Fac Ext Total 6512 | . 705 72 429 588 756 711 388 16 1869 573 405 Wait 174 | . . . . . 128 1 . . 32 4 9 Move 5693 | . 625 58 424 574 497 587 383 16 1629 511 389 Hop . | . . . . . . . . . . . . Pick Up 82 | . 7 2 2 2 21 13 1 . 28 6 . Fast Attach 32 | . 3 . . . 6 5 . . 17 . 1 Attach 45 | . 2 . . . 3 7 1 . 20 7 5 Detach 20 | . 2 . . . . 2 . . 16 . . Swap 63 | . 6 . 2 3 17 16 2 . 16 1 . Drop 88 | . 5 . 1 1 17 13 1 . 49 1 . Fire 254 | . 42 12 . 4 65 66 . . 56 9 . Melee 30 | . 13 . . . 1 1 . . 6 8 1 Ram . | . . . . . . . . . . . . Kick . | . . . . . . . . . . . . Crush 1 | . . . . . 1 . . . . . . Escape Stasis 26 | . . . . . . . . . . 26 . Rewire 4 | . . . . 4 . . . . . . . Trap . | . . . . . . . . . . . . Miscellaneous . | . . . . . . . . . . . . Route ------- -11/Scrapyard -10/Materials (discovered 4 exits: [*Mat x3] / [*Min]) -10/Mines -10/Exiles -9/Mines (discovered 2 exits: *Mat x2) -8/Materials (discovered 2 exits: *Fac x2) -7/Factory -7/Lower Caves -7/Lower Caves -6/Factory -5/Factory -5/Extension (discovered 1 exit: Cet) History --------- Turn | Location | Event 1 | -11/Scrapyard | Discovered new exit (range 0) 1 | -11/Scrapyard | Entered Materials 133 | -10/Materials | Discovered new exit (range 16) 315 | -10/Materials | Build established: Mutant 517 | -10/Materials | Discovered new exit (range 10) 659 | -10/Materials | Discovered new exit (range 7) 987 | -10/Materials | Discovered new exit (range 11) 1144 | -10/Materials | Entered Mines 1151 | -10/Mines | Received a Rocket Launcher from a helpful Derelict 1253 | -10/Mines | Learned location of 1 exit from Materials 1262 | -10/Mines | Deemed a non-threat by the Exiles lab entrance 1264 | -10/Mines | Discovered new exit (range 5) 1270 | -10/Mines | Entered Exiles 1312 | -10/Exiles | Met 8R-AWN 1339 | -10/Exiles | Met EX-HEX 1384 | -10/Exiles | Met EX-BIN 1406 | -10/Exiles | Aligned with FarCom system 1408 | -10/Exiles | Given EX-Vault access code 1446 | -10/Exiles | Opened EX-Vault 1459 | -10/Exiles | Found AWS/Autocannon 1497 | -10/Exiles | Warned to stay clear of 0b10 Research branches 1537 | -10/Exiles | Met EX-DEC 1586 | -10/Exiles | Visited The Gauntlet 1960 | -10/Exiles | Discovered new exit (range 10) 1975 | -10/Exiles | Left Exiles lab with AWS/Autocannon 1975 | -10/Exiles | Entered Mines 1976 | -9/Mines | Met a Derelict bent on vengeance 2040 | -9/Mines | Discovered new exit (range 8) 2085 | -9/Mines | Build established: Hauler-Mutant 2384 | -9/Mines | Learned location of Storage (-7) 2632 | -9/Mines | Discovered new exit (range 7) 3031 | -9/Mines | Entered Materials 3031 | -8/Materials | Evolved 4 slots: Propulsion x1, Utility x3 3032 | -8/Materials | Identified exit to Factory 3339 | -8/Materials | Garrison activated, responded to threat 4278 | -8/Materials | Discovered exit to Factory (range 3) 4282 | -8/Materials | Entered Factory 4282 | -7/Factory | Evolved 2 slots: Propulsion x1, Utility x1 5247 | -7/Factory | Discovered new exit (range 13) 5517 | -7/Factory | Entered Lower Caves 5738 | -7/Lower Caves | Learned Factory trap positions 5757 | -7/Lower Caves | Encountered a Warlord checkpoint 5765 | -7/Lower Caves | Learned Factory terminal intel 6026 | -7/Lower Caves | Discovered new exit (range 16) 6181 | -7/Lower Caves | Identified exit to Lower Caves 6209 | -7/Lower Caves | Entered another Lower Caves area 6222 | -7/Lower Caves | Discovered new exit (range 10) 6233 | -7/Lower Caves | Identified exit to Factory 6235 | -7/Lower Caves | Entered Factory 6235 | -6/Factory | Evolved 2 slots: Power x1, Utility x1 6236 | -6/Factory | Loaded intel: 119 trap records 6237 | -6/Factory | Loaded intel: 19 terminal locations 7462 | -6/Factory | Crushed by falling debris 8299 | -6/Factory | System corruption reached 10% 8310 | -6/Factory | Build established: Infiltrator-Mutant 8405 | -6/Factory | Spotted B-75 Beast 8490 | -6/Factory | Discovered new exit (range 15) 8554 | -6/Factory | Repaired Lrg. Storage Unit 8576 | -6/Factory | Entered another Factory area 8576 | -5/Factory | Evolved 2 slots: Utility x2 8895 | -5/Factory | Lost 10 parts (2p3n3u2w) 8925 | -5/Factory | Discovered new exit (range 12) 8931 | -5/Factory | Entered Extension 8948 | -5/Extension | Disrupted transfer network 9089 | -5/Extension | Identified exit to Cetus 9109 | -5/Extension | Rescued a captive Derelict 9128 | -5/Extension | Build established: Hacker-Mutant 9151 | -5/Extension | Spotted B-75 Beast 9159 | -5/Extension | Spotted B-75 Beast 9165 | -5/Extension | Core integrity fell below 50% 9183 | -5/Extension | Core integrity fell below 20% 9185 | -5/Extension | Destroyed by B-75 Beast with Magnetic Acceleration Cannon Last Messages --------------- 09170_ R-10 Processor collects Terrain Scan Processor. 09171_ J 2#BTVAJXABNJU NM=VJ3%Z 09171_ Acquired Lgt. Ion Engine. 09171_ Gravmag System destroyed. 09172_ Imp. Transmission Jammer destroyed. 09173_ Penetrated by Slug. 09173_ Lgt. Ion Engine destroyed. 09174_ R-10 Processor collects Welding Torch. 09174_ Machine disabled. 09178_ Imp. Carbon-fiber Leg destroyed. 09179_ Cld. Airjet destroyed. 09179_ Med. Storage Unit destroyed. 09180_ Slug penetrates Wall. 09181_ R-10 Processor collects Mic. Fission Core. 09181_ Knocked back. 09182_ HV Slug penetrates B-75 Beast. 09182_ B-75 Beast suffers critical hit. 09182_ HV Slug penetrates B-75 Beast. 09183_ Penetrated by Slug. 09185_ R-10 Processor collects Adv. Heat Sink. Map ----- +----------------------------------------------------+ | #?????????????????????????????????????????? | | ######+#??????????????????????????????????? | | #??????????????????????????????????? | | ####### ##### #??????????????????????????????????? | | ??????# #???# #??????????????????????????????????? | | ??????# #???# #??????????????????????????????????? | | ??????# #???# #??????????????????????????????????? | | ??????# #???# #??????????????????????????????????? | | ?????## ##??# #??????????????????????????????????? | | ?????# #??# #????????? ????????????????????????? | | ?????# #??# #????????? ????????????????????????? | | ?????# #??# #????????? ????????????????????????? | | ?????## ##??# #????????? ????????????????????????? | | ??????# #???# #????????? ????????????????????????? | | ???####+##### #????????? ????????????????????????? | | ???# # #????????? ????????????????????????? | | ???# / #????????# #???????????????????????? | | ???# # #????????# ???????????????????????? | | ???# # #????????# #???????????????????????? | | ???########## #????????# #???????????????????????? | | ????????????# #?#####??# #???????????????????????? | | ???????????## ########?# #???????????????????????? | | ??????????###R###*## ### ###?????????????????????? | | ??????????#"" % Y ""#?????????????????????? | | ??????????# " h #?????????????????????? | | ??????????# @ #?????????????????????? | | ??????????# #?????????????????????? | | ########### #?????????????????????? | | u ??????????????????? | | u u ???????????????? | | ????????????????? | | BB ???????????????? | | BB BB ??????????????? | | ########### BB #########?????????????? | | ??????????# #?????????????????????? | | ??????????# #?????????????????????? | | ??????????# #?????????????????????? | | ??????????# #?????????????????????? | | ????????????####T#"""#######?????????????????????? | | ?????????????????????????????????????????????????? | | ?????????????????????????????????????????????????? | | | | | | | | | | | | | | | | | | | +----------------------------------------------------+ Best States ------------- Heat Dissipation 40 Energy Generation 31 Energy Capacity 350 Matter Stores 300 Matter Capacity 300 Sight Range 22 Terrain Scan Density 10 Jamming Range 12 Cloak Strength 2 Additional Mass Support 9 Armor Coverage 450 Resistance: EM 25 Evasion (%) 56 Recoil Reduction 4 Offensive Hacking 22 Defensive Hacking 12 Item Schematics ----------------- Gravmag Array | -6/Factory | Scanalyzed Robot Schematics ------------------ None Fabricated ------------ Nothing Alien Tech Used ----------------- None Achievements -------------- Armchair Analyst Packrat Challenges ------------ None Game ------ Seed HardenedEnhancedClaws Manual? 0 Play Time 01:39:04 Cumulative 55.6 hours Start 2020.10.10 @ 18:53:50 End 2020.10.10 @ 23:19:45 Sessions 3 Manual Loads 0 Difficulty Rogue Special Mode None Game No. 94 Rogue 94 Adventurer 0 Explorer 0 Win Type - Total 0 Types 0/0/0/0/0/0/0/0/0 Lore% 29 Gallery% 44 Achievement% 32 Wizard Run 0 Options --------- ASCII 1 Keyboard 1 Movement Vi Keybinds 0 Fullscreen 2 Font 24/Crisp Map View 76x50 Tactical HUD 1 Map Filters SATURATION(70) Filters SATURATION(65)|SHIFT_HUE(15) Steam 1 RUN: 045c2ca1-e210-4a3f-aae4-ab0b8cfe9ddc